[Event "Titled Tuesday Blitz September 27 Early 2022"]
[White "Pakleza, Zbigniew"]
[Black "Vlassov, Nikolai"]
[WhiteFideId "1119290"]
[BlackFideId "4103360"]
[WhiteElo "2411"]
[BlackElo "2324"]
[Result "1-0"]
[Round "03"]
[TimeControl "180+1"]
[Date "2022.09.27"]
[WhiteClock "0:00:58"]
[BlackClock "0:00:03"]

1. d4 {[%clk 0:03:00]}  Nf6 {[%clk 0:02:59]} 2. Nf3 {[%clk 0:03:01]}  e6 {[%clk 0:02:59]} 3. Bf4 {[%clk 0:03:01]}  c5 {[%clk 0:02:59]} 4. c3 {[%clk 0:03:01]}  b6 {[%clk 0:02:59]} 5. e3 {[%clk 0:03:01]}  Bb7 {[%clk 0:02:59]} 6. Nbd2 {[%clk 0:03:02]}  Be7 {[%clk 0:02:59]} 7. h3 {[%clk 0:03:02]}  d6 {[%clk 0:02:57]} 8. Nc4 {[%clk 0:03:00]}  Ne4 {[%clk 0:02:45]} 9. Bd3 {[%clk 0:02:53]}  b5 {[%clk 0:02:32]} 10. Ncd2 {[%clk 0:02:48]}  Nxd2 {[%clk 0:02:30]} 11. Bxb5+ {[%clk 0:02:46]}  Kf8 {[%clk 0:02:23]} 12. Qxd2 {[%clk 0:02:44]}  Bxf3 {[%clk 0:02:22]} 13. gxf3 {[%clk 0:02:44]}  cxd4 {[%clk 0:02:22]} 14. cxd4 {[%clk 0:02:39]}  Nd7 {[%clk 0:02:19]} 15. O-O {[%clk 0:02:32]}  Nf6 {[%clk 0:01:49]} 16. Rfc1 {[%clk 0:02:22]}  Nh5 {[%clk 0:01:31]} 17. Bh2 {[%clk 0:02:20]}  g6 {[%clk 0:01:32]} 18. Rc6 {[%clk 0:02:11]}  Kg7 {[%clk 0:01:31]} 19. Rac1 {[%clk 0:02:10]}  Rb8 {[%clk 0:01:17]} 20. Bf1 {[%clk 0:01:58]}  a5 {[%clk 0:00:57]} 21. b3 {[%clk 0:01:55]}  Rb7 {[%clk 0:00:43]} 22. Ra6 {[%clk 0:01:48]}  d5 {[%clk 0:00:43]} 23. Qxa5 {[%clk 0:01:43]}  Qd7 {[%clk 0:00:38]} 24. Qa4 {[%clk 0:01:38]}  Qd8 {[%clk 0:00:32]} 25. Qc6 {[%clk 0:01:32]}  Qd7 {[%clk 0:00:15]} 26. Qxd7 {[%clk 0:01:27]}  Rxd7 {[%clk 0:00:16]} 27. a4 {[%clk 0:01:20]}  Nf6 {[%clk 0:00:08]} 28. Bb5 {[%clk 0:01:15]}  Rb7 {[%clk 0:00:07]} 29. Rc7 {[%clk 0:01:15]}  Rxc7 {[%clk 0:00:05]} 30. Bxc7 {[%clk 0:01:16]}  Rc8 {[%clk 0:00:06]} 31. Rc6 {[%clk 0:01:17]}  Kf8 {[%clk 0:00:03]} 32. Bf4 {[%clk 0:01:03]}  Ra8 {[%clk 0:00:03]} 33. Bh6+ {[%clk 0:01:02]}  Kg8 {[%clk 0:00:03]} 34. Kf1 {[%clk 0:01:00]}  Ne8 {[%clk 0:00:03]} 35. Bf4 {[%clk 0:00:59]}  f6 {[%clk 0:00:03]} 36. Rxe6 {[%clk 0:00:58]}  Kf7 {[%clk 0:00:03]} 37. Ra6 {[%clk 0:00:58]}  g5 {[%clk 0:00:03]} 38. Rxa8 {[%clk 0:00:58]}  gxf4 {[%clk 0:00:03]} 39. Bxe8+ {[%clk 0:00:58]} 1-0


[Site "https://www.chess.com"]

[Event "Titled Tuesday Blitz September 27 Early 2022"]
[White "Petrosyan, Manuel"]
[Black "Sychev, Klementy"]
[WhiteFideId "13300857"]
[BlackFideId "4114060"]
[WhiteElo "2592"]
[BlackElo "2564"]
[Result "1-0"]
[Round "03"]
[TimeControl "180+1"]
[Date "2022.09.27"]
[WhiteClock "0:00:36"]
[BlackClock "0:00:03"]

1. Nf3 {[%clk 0:03:00]}  Nf6 {[%clk 0:02:47]} 2. g3 {[%clk 0:03:01]}  d5 {[%clk 0:02:46]} 3. Bg2 {[%clk 0:03:01]}  c5 {[%clk 0:02:46]} 4. O-O {[%clk 0:03:01]}  e6 {[%clk 0:02:45]} 5. d4 {[%clk 0:02:58]}  cxd4 {[%clk 0:02:45]} 6. b3 {[%clk 0:02:57]}  h5 {[%clk 0:02:33]} 7. Qxd4 {[%clk 0:02:44]}  Nc6 {[%clk 0:02:31]} 8. Qh4 {[%clk 0:02:39]}  Ne7 {[%clk 0:02:16]} 9. Ne5 {[%clk 0:02:31]}  Nc6 {[%clk 0:01:57]} 10. Nxc6 {[%clk 0:02:16]}  bxc6 {[%clk 0:01:56]} 11. Bg5 {[%clk 0:02:16]}  Be7 {[%clk 0:01:56]} 12. Rd1 {[%clk 0:02:14]}  Ng4 {[%clk 0:01:34]} 13. Bxe7 {[%clk 0:02:14]}  Qxe7 {[%clk 0:01:35]} 14. Qxe7+ {[%clk 0:02:15]}  Kxe7 {[%clk 0:01:36]} 15. c4 {[%clk 0:02:07]}  Ba6 {[%clk 0:01:29]} 16. Nc3 {[%clk 0:01:56]}  Rhd8 {[%clk 0:00:36]} 17. Na4 {[%clk 0:01:54]}  Rab8 {[%clk 0:00:24]} 18. Nc5 {[%clk 0:01:52]}  Bc8 {[%clk 0:00:25]} 19. Rac1 {[%clk 0:01:48]}  Ne5 {[%clk 0:00:23]} 20. cxd5 {[%clk 0:01:40]}  cxd5 {[%clk 0:00:21]} 21. e4 {[%clk 0:01:40]}  d4 {[%clk 0:00:19]} 22. f4 {[%clk 0:01:32]}  Ng4 {[%clk 0:00:19]} 23. e5 {[%clk 0:01:20]}  Ne3 {[%clk 0:00:18]} 24. Rd2 {[%clk 0:01:18]}  a5 {[%clk 0:00:17]} 25. Bf3 {[%clk 0:01:13]}  h4 {[%clk 0:00:16]} 26. Ne4 {[%clk 0:00:59]}  hxg3 {[%clk 0:00:14]} 27. hxg3 {[%clk 0:00:58]}  Bb7 {[%clk 0:00:12]} 28. Rc7+ {[%clk 0:00:58]}  Kf8 {[%clk 0:00:12]} 29. Ng5 {[%clk 0:00:37]}  Bxf3 {[%clk 0:00:11]} 30. Rh2 {[%clk 0:00:37]}  Kg8 {[%clk 0:00:08]} 31. Nxf7 {[%clk 0:00:35]}  g6 {[%clk 0:00:03]} 32. Rh8+ {[%clk 0:00:35]}  Kg7 {[%clk 0:00:03]} 33. Rxd8 {[%clk 0:00:36]} 1-0


[Site "https://www.chess.com"]

[Event "Titled Tuesday Blitz September 27 Early 2022"]
[White "Poltorak, Sebastian"]
[Black "Bobomurodova, Maftuna"]
[WhiteFideId "1199498"]
[BlackFideId "14207400"]
[WhiteElo "2104"]
[BlackElo "1548"]
[Result "1-0"]
[Round "03"]
[TimeControl "180+1"]
[Date "2022.09.27"]
[WhiteClock "0:00:06"]
[BlackClock "0:00:33"]

1. d4 {[%clk 0:03:00]}  Nf6 {[%clk 0:02:57]} 2. c4 {[%clk 0:02:44]}  e6 {[%clk 0:02:55]} 3. Nf3 {[%clk 0:02:44]}  b6 {[%clk 0:02:53]} 4. Nc3 {[%clk 0:02:42]}  Bb4 {[%clk 0:02:52]} 5. Qc2 {[%clk 0:02:41]}  O-O {[%clk 0:02:49]} 6. Bg5 {[%clk 0:02:40]}  Bb7 {[%clk 0:02:37]} 7. e3 {[%clk 0:02:39]}  h6 {[%clk 0:02:35]} 8. Bh4 {[%clk 0:02:38]}  c5 {[%clk 0:02:35]} 9. a3 {[%clk 0:02:33]}  Bxc3+ {[%clk 0:02:35]} 10. Qxc3 {[%clk 0:02:25]}  cxd4 {[%clk 0:02:27]} 11. Nxd4 {[%clk 0:02:23]}  Nc6 {[%clk 0:02:23]} 12. Rd1 {[%clk 0:02:05]}  Qe7 {[%clk 0:02:12]} 13. Be2 {[%clk 0:01:51]}  Nxd4 {[%clk 0:02:10]} 14. Qxd4 {[%clk 0:01:51]}  Rfd8 {[%clk 0:02:09]} 15. O-O {[%clk 0:01:50]}  d5 {[%clk 0:02:09]} 16. Bf3 {[%clk 0:01:23]}  dxc4 {[%clk 0:02:06]} 17. Bxf6 {[%clk 0:01:23]}  gxf6 {[%clk 0:01:53]} 18. Qg4+ {[%clk 0:01:21]}  Kf8 {[%clk 0:01:52]} 19. Bxb7 {[%clk 0:01:08]}  Qxb7 {[%clk 0:01:51]} 20. Qf4 {[%clk 0:01:09]}  Ke7 {[%clk 0:01:49]} 21. Qxc4 {[%clk 0:01:08]}  Rac8 {[%clk 0:01:43]} 22. Qb4+ {[%clk 0:01:05]}  Ke8 {[%clk 0:01:42]} 23. Qf4 {[%clk 0:01:03]}  f5 {[%clk 0:01:39]} 24. Qxh6 {[%clk 0:01:03]}  Qe4 {[%clk 0:01:35]} 25. h3 {[%clk 0:00:52]}  Qc2 {[%clk 0:01:23]} 26. Qh8+ {[%clk 0:00:48]}  Ke7 {[%clk 0:01:23]} 27. Qh4+ {[%clk 0:00:48]}  Ke8 {[%clk 0:01:23]} 28. Rc1 {[%clk 0:00:42]}  Qxc1 {[%clk 0:01:17]} 29. Rxc1 {[%clk 0:00:41]}  Rxc1+ {[%clk 0:01:18]} 30. Kh2 {[%clk 0:00:42]}  Rcd1 {[%clk 0:01:12]} 31. Qf6 {[%clk 0:00:27]}  R8d2 {[%clk 0:01:10]} 32. Kg3 {[%clk 0:00:27]}  Re1 {[%clk 0:01:08]} 33. Qh8+ {[%clk 0:00:23]}  Ke7 {[%clk 0:01:06]} 34. Qh4+ {[%clk 0:00:23]}  Kd7 {[%clk 0:01:02]} 35. Qa4+ {[%clk 0:00:23]}  Kc8 {[%clk 0:01:01]} 36. Qe8+ {[%clk 0:00:19]}  Kb7 {[%clk 0:00:59]} 37. Qxf7+ {[%clk 0:00:19]}  Ka6 {[%clk 0:00:59]} 38. Qxe6 {[%clk 0:00:19]}  Ree2 {[%clk 0:01:00]} 39. Qc8+ {[%clk 0:00:18]}  Ka5 {[%clk 0:00:59]} 40. Qc3+ {[%clk 0:00:18]}  Ka6 {[%clk 0:00:58]} 41. Qc4+ {[%clk 0:00:19]}  Kb7 {[%clk 0:00:58]} 42. Qf7+ {[%clk 0:00:19]}  Ka6 {[%clk 0:00:58]} 43. Qxf5 {[%clk 0:00:19]}  Rxb2 {[%clk 0:00:58]} 44. h4 {[%clk 0:00:19]}  Rec2 {[%clk 0:00:54]} 45. h5 {[%clk 0:00:18]}  Rc7 {[%clk 0:00:54]} 46. h6 {[%clk 0:00:17]}  Rd2 {[%clk 0:00:52]} 47. h7 {[%clk 0:00:18]}  Rd8 {[%clk 0:00:52]} 48. Qh5 {[%clk 0:00:11]}  Rg7+ {[%clk 0:00:52]} 49. Kf3 {[%clk 0:00:10]}  Rh8 {[%clk 0:00:52]} 50. Ke2 {[%clk 0:00:09]}  Rhxh7 {[%clk 0:00:52]} 51. Qd5 {[%clk 0:00:09]}  Rh6 {[%clk 0:00:51]} 52. f4 {[%clk 0:00:07]}  Rh2 {[%clk 0:00:50]} 53. Kf2 {[%clk 0:00:08]}  Rh4 {[%clk 0:00:50]} 54. Kf3 {[%clk 0:00:07]}  Rh1 {[%clk 0:00:49]} 55. f5 {[%clk 0:00:06]}  Rf1+ {[%clk 0:00:49]} 56. Ke2 {[%clk 0:00:07]}  Rg1 {[%clk 0:00:49]} 57. Kf2 {[%clk 0:00:06]}  Rc1 {[%clk 0:00:49]} 58. f6 {[%clk 0:00:06]}  Rc2+ {[%clk 0:00:47]} 59. Kf3 {[%clk 0:00:06]}  Rgc7 {[%clk 0:00:44]} 60. Qd3+ {[%clk 0:00:06]}  Kb7 {[%clk 0:00:43]} 61. Qe4+ {[%clk 0:00:05]}  Kb8 {[%clk 0:00:43]} 62. g4 {[%clk 0:00:06]}  R2c6 {[%clk 0:00:41]} 63. g5 {[%clk 0:00:06]}  Rd6 {[%clk 0:00:39]} 64. Qf4 {[%clk 0:00:06]}  Rd8 {[%clk 0:00:38]} 65. g6 {[%clk 0:00:06]}  Kb7 {[%clk 0:00:38]} 66. g7 {[%clk 0:00:06]}  Rf7 {[%clk 0:00:35]} 67. Qe4+ {[%clk 0:00:07]}  Kb8 {[%clk 0:00:35]} 68. Qe6 {[%clk 0:00:07]}  Rc7 {[%clk 0:00:33]} 69. f7 {[%clk 0:00:06]} 1-0


[Site "https://www.chess.com"]

[Event "Titled Tuesday Blitz September 27 Early 2022"]
[White "Priasmoro, Novendra"]
[Black "So, Wesley"]
[WhiteFideId "7105029"]
[BlackFideId "5202213"]
[WhiteElo "2309"]
[BlackElo "2763"]
[Result "1-0"]
[Round "03"]
[TimeControl "180+1"]
[Date "2022.09.27"]
[WhiteClock "0:00:23"]
[BlackClock "0:00:01"]

1. e4 {[%clk 0:03:00]}  c5 {[%clk 0:02:59]} 2. Nf3 {[%clk 0:03:01]}  d6 {[%clk 0:02:59]} 3. d4 {[%clk 0:03:01]}  cxd4 {[%clk 0:02:59]} 4. Nxd4 {[%clk 0:03:02]}  Nf6 {[%clk 0:03:00]} 5. Nc3 {[%clk 0:03:02]}  a6 {[%clk 0:03:00]} 6. g3 {[%clk 0:03:03]}  e6 {[%clk 0:02:59]} 7. Bg2 {[%clk 0:03:03]}  Be7 {[%clk 0:02:59]} 8. O-O {[%clk 0:03:02]}  O-O {[%clk 0:02:59]} 9. h3 {[%clk 0:02:59]}  Nc6 {[%clk 0:02:57]} 10. Be3 {[%clk 0:02:59]}  Qc7 {[%clk 0:02:49]} 11. f4 {[%clk 0:02:54]}  Nxd4 {[%clk 0:02:45]} 12. Bxd4 {[%clk 0:02:55]}  e5 {[%clk 0:02:45]} 13. Be3 {[%clk 0:02:50]}  b5 {[%clk 0:02:45]} 14. a3 {[%clk 0:02:17]}  h6 {[%clk 0:02:34]} 15. g4 {[%clk 0:02:06]}  exf4 {[%clk 0:02:28]} 16. Rxf4 {[%clk 0:02:03]}  Be6 {[%clk 0:02:27]} 17. Qd2 {[%clk 0:01:51]}  Nd7 {[%clk 0:02:21]} 18. Rf2 {[%clk 0:01:37]}  Ne5 {[%clk 0:02:19]} 19. Nd5 {[%clk 0:01:34]}  Bxd5 {[%clk 0:02:18]} 20. Qxd5 {[%clk 0:01:35]}  Bh4 {[%clk 0:02:06]} 21. Re2 {[%clk 0:01:33]}  Nc4 {[%clk 0:01:57]} 22. Bf4 {[%clk 0:01:25]}  Bf6 {[%clk 0:01:53]} 23. c3 {[%clk 0:01:24]}  Be5 {[%clk 0:01:51]} 24. Rf1 {[%clk 0:01:20]}  Bxf4 {[%clk 0:01:29]} 25. Rxf4 {[%clk 0:01:21]}  Rae8 {[%clk 0:01:29]} 26. Ref2 {[%clk 0:01:19]}  Re5 {[%clk 0:01:25]} 27. Qd4 {[%clk 0:01:19]}  a5 {[%clk 0:01:23]} 28. Rf5 {[%clk 0:01:16]}  Qe7 {[%clk 0:01:11]} 29. a4 {[%clk 0:01:11]}  Qb7 {[%clk 0:00:50]} 30. axb5 {[%clk 0:01:10]}  Rxf5 {[%clk 0:00:40]} 31. Rxf5 {[%clk 0:01:01]}  Rc8 {[%clk 0:00:36]} 32. e5 {[%clk 0:00:56]}  Qxb5 {[%clk 0:00:35]} 33. e6 {[%clk 0:00:56]}  Qxb2 {[%clk 0:00:31]} 34. exf7+ {[%clk 0:00:56]}  Kf8 {[%clk 0:00:31]} 35. Bd5 {[%clk 0:00:38]}  Qb6 {[%clk 0:00:30]} 36. Be6 {[%clk 0:00:30]}  Qb1+ {[%clk 0:00:16]} 37. Kg2 {[%clk 0:00:24]}  Qa2+ {[%clk 0:00:04]} 38. Rf2 {[%clk 0:00:24]}  Ne3+ {[%clk 0:00:01]} 39. Qxe3 {[%clk 0:00:23]} 1-0


[Site "https://www.chess.com"]

[Event "Titled Tuesday Blitz September 27 Early 2022"]
[White "Prraneeth Vuppala"]
[Black "Pham, Khoi"]
[WhiteFideId "46622373"]
[BlackFideId "1054988"]
[WhiteElo "2073"]
[BlackElo "2443"]
[Result "1-0"]
[Round "03"]
[TimeControl "180+1"]
[Date "2022.09.27"]
[WhiteClock "0:00:30"]
[BlackClock "0:00:49"]

1. d4 {[%clk 0:03:00]}  f5 {[%clk 0:02:59]} 2. Bf4 {[%clk 0:02:51]}  Nf6 {[%clk 0:02:59]} 3. e3 {[%clk 0:02:51]}  d6 {[%clk 0:02:59]} 4. h3 {[%clk 0:02:48]}  g6 {[%clk 0:02:58]} 5. Nf3 {[%clk 0:02:42]}  Bg7 {[%clk 0:02:57]} 6. h4 {[%clk 0:02:42]}  O-O {[%clk 0:02:56]} 7. Bd3 {[%clk 0:02:33]}  Qe8 {[%clk 0:02:51]} 8. c4 {[%clk 0:02:24]}  Nbd7 {[%clk 0:02:48]} 9. d5 {[%clk 0:02:19]}  Nh5 {[%clk 0:02:42]} 10. Nc3 {[%clk 0:02:16]}  Nxf4 {[%clk 0:02:40]} 11. exf4 {[%clk 0:02:17]}  e5 {[%clk 0:02:39]} 12. dxe6 {[%clk 0:02:09]}  Nc5 {[%clk 0:02:37]} 13. O-O {[%clk 0:02:06]}  Nxe6 {[%clk 0:02:28]} 14. Re1 {[%clk 0:02:04]}  Qf7 {[%clk 0:02:25]} 15. g3 {[%clk 0:01:59]}  h6 {[%clk 0:02:22]} 16. Qd2 {[%clk 0:01:49]}  Nc5 {[%clk 0:02:21]} 17. Bf1 {[%clk 0:01:41]}  Be6 {[%clk 0:02:18]} 18. Rad1 {[%clk 0:01:27]}  Bxc4 {[%clk 0:02:12]} 19. Bxc4 {[%clk 0:01:24]}  Qxc4 {[%clk 0:02:13]} 20. Nd5 {[%clk 0:01:23]}  Ne4 {[%clk 0:02:08]} 21. Qa5 {[%clk 0:01:21]}  b6 {[%clk 0:02:06]} 22. Qa3 {[%clk 0:01:13]}  Rf7 {[%clk 0:01:58]} 23. Ne3 {[%clk 0:01:10]}  Qc5 {[%clk 0:01:56]} 24. b4 {[%clk 0:01:03]}  Qc3 {[%clk 0:01:54]} 25. Qa4 {[%clk 0:00:56]}  a5 {[%clk 0:01:51]} 26. bxa5 {[%clk 0:00:49]}  Qxa5 {[%clk 0:01:50]} 27. Qc6 {[%clk 0:00:49]}  Qxa2 {[%clk 0:01:47]} 28. Rf1 {[%clk 0:00:39]}  Ra5 {[%clk 0:01:26]} 29. Nd5 {[%clk 0:00:38]}  Rc5 {[%clk 0:01:14]} 30. Qe8+ {[%clk 0:00:38]}  Bf8 {[%clk 0:01:14]} 31. Qe6 {[%clk 0:00:33]}  Kg7 {[%clk 0:01:04]} 32. h5 {[%clk 0:00:32]}  gxh5 {[%clk 0:01:00]} 33. Nh4 {[%clk 0:00:31]}  Nc3 {[%clk 0:00:52]} 34. Qg6+ {[%clk 0:00:29]}  Kh8 {[%clk 0:00:51]} 35. Qxf7 {[%clk 0:00:30]}  Rxd5 {[%clk 0:00:49]} 36. Ng6# {[%clk 0:00:30]} 1-0


[Site "https://www.chess.com"]

[Event "Titled Tuesday Blitz September 27 Early 2022"]
[White "Przybylski, Wojciech"]
[Black "Moksh Amit Doshi"]
[WhiteFideId "1117599"]
[BlackFideId "25064967"]
[WhiteElo "2133"]
[BlackElo "2245"]
[Result "0-1"]
[Round "03"]
[TimeControl "180+1"]
[Date "2022.09.27"]
[WhiteClock "0:00:05"]
[BlackClock "0:00:29"]

1. e4 {[%clk 0:03:00]}  c5 {[%clk 0:02:56]} 2. Nf3 {[%clk 0:03:00]}  d6 {[%clk 0:02:57]} 3. Bb5+ {[%clk 0:02:59]}  Nd7 {[%clk 0:02:56]} 4. O-O {[%clk 0:02:59]}  a6 {[%clk 0:02:55]} 5. Bd3 {[%clk 0:02:58]}  Ngf6 {[%clk 0:02:55]} 6. c3 {[%clk 0:02:58]}  e6 {[%clk 0:02:34]} 7. a4 {[%clk 0:02:56]}  b6 {[%clk 0:02:34]} 8. Re1 {[%clk 0:02:55]}  Bb7 {[%clk 0:02:34]} 9. Bc2 {[%clk 0:02:55]}  Be7 {[%clk 0:02:35]} 10. d4 {[%clk 0:02:54]}  O-O {[%clk 0:02:33]} 11. Nbd2 {[%clk 0:02:53]}  Qc7 {[%clk 0:02:31]} 12. b3 {[%clk 0:02:51]}  Rac8 {[%clk 0:02:30]} 13. Bd3 {[%clk 0:02:19]}  cxd4 {[%clk 0:02:26]} 14. cxd4 {[%clk 0:02:20]}  Qc3 {[%clk 0:02:26]} 15. Rb1 {[%clk 0:02:20]}  Qxd3 {[%clk 0:02:26]} 16. Re3 {[%clk 0:01:47]}  Qc2 {[%clk 0:02:25]} 17. Qe2 {[%clk 0:01:48]}  Rc3 {[%clk 0:01:58]} 18. Ne1 {[%clk 0:01:35]}  Rxe3 {[%clk 0:01:56]} 19. Qxe3 {[%clk 0:01:35]}  Qc6 {[%clk 0:01:55]} 20. f3 {[%clk 0:01:33]}  e5 {[%clk 0:01:53]} 21. Bb2 {[%clk 0:01:33]}  d5 {[%clk 0:01:50]} 22. Rc1 {[%clk 0:01:23]}  Qe6 {[%clk 0:01:49]} 23. dxe5 {[%clk 0:01:20]}  Bc5 {[%clk 0:01:47]} 24. Rxc5 {[%clk 0:01:19]}  bxc5 {[%clk 0:01:42]} 25. exf6 {[%clk 0:01:19]}  Nxf6 {[%clk 0:01:43]} 26. Nd3 {[%clk 0:00:57]}  Nd7 {[%clk 0:01:31]} 27. e5 {[%clk 0:00:29]}  Qb6 {[%clk 0:01:12]} 28. Kf2 {[%clk 0:00:18]}  Re8 {[%clk 0:01:11]} 29. f4 {[%clk 0:00:13]}  h6 {[%clk 0:01:11]} 30. Ke2 {[%clk 0:00:12]}  c4 {[%clk 0:01:06]} 31. bxc4 {[%clk 0:00:09]}  dxc4 {[%clk 0:01:06]} 32. Nxc4 {[%clk 0:00:09]}  Qg6 {[%clk 0:01:03]} 33. g3 {[%clk 0:00:06]}  Qh5+ {[%clk 0:01:02]} 34. Ke1 {[%clk 0:00:04]}  Qxh2 {[%clk 0:01:02]} 35. Nd6 {[%clk 0:00:04]}  Rb8 {[%clk 0:00:56]} 36. Bd4 {[%clk 0:00:03]}  Bc6 {[%clk 0:00:56]} 37. Nf2 {[%clk 0:00:01]}  Rb1+ {[%clk 0:00:49]} 38. Kd2 {[%clk 0:00:01]}  Qg1 {[%clk 0:00:44]} 39. f5 {[%clk 0:00:01]}  Qc1+ {[%clk 0:00:44]} 40. Ke2 {[%clk 0:00:02]}  Qxe3+ {[%clk 0:00:39]} 41. Kxe3 {[%clk 0:00:03]}  Bxa4 {[%clk 0:00:40]} 42. Nfe4 {[%clk 0:00:02]}  Bc6 {[%clk 0:00:37]} 43. Nc3 {[%clk 0:00:02]}  Re1+ {[%clk 0:00:36]} 44. Kd2 {[%clk 0:00:03]}  Rh1 {[%clk 0:00:35]} 45. e6 {[%clk 0:00:03]}  fxe6 {[%clk 0:00:35]} 46. fxe6 {[%clk 0:00:04]}  Nf6 {[%clk 0:00:36]} 47. e7 {[%clk 0:00:05]}  Ne8 {[%clk 0:00:35]} 48. Nf5 {[%clk 0:00:04]}  Rh2+ {[%clk 0:00:34]} 49. Ke3 {[%clk 0:00:04]}  g6 {[%clk 0:00:32]} 50. Nh4 {[%clk 0:00:03]}  Kf7 {[%clk 0:00:31]} 51. Be5 {[%clk 0:00:03]}  Rh1 {[%clk 0:00:30]} 52. Kd4 {[%clk 0:00:01]}  Re1 {[%clk 0:00:30]} 53. Bf4 {[%clk 0:00:01]}  g5 {[%clk 0:00:29]} 54. Nf5 {[%clk 0:00:01]}  gxf4 {[%clk 0:00:28]} 55. gxf4 {[%clk 0:00:02]}  Rxe7 {[%clk 0:00:27]} 56. Nxe7 {[%clk 0:00:02]}  Kxe7 {[%clk 0:00:28]} 57. Kc5 {[%clk 0:00:03]}  Bf3 {[%clk 0:00:27]} 58. Kb6 {[%clk 0:00:03]}  h5 {[%clk 0:00:28]} 59. Kxa6 {[%clk 0:00:02]}  h4 {[%clk 0:00:28]} 60. Nb5 {[%clk 0:00:02]}  h3 {[%clk 0:00:29]} 61. Nd4 {[%clk 0:00:03]}  Be4 {[%clk 0:00:28]} 62. Ne2 {[%clk 0:00:03]}  h2 {[%clk 0:00:28]} 63. Ng3 {[%clk 0:00:04]}  Bf3 {[%clk 0:00:28]} 64. Kb5 {[%clk 0:00:04]}  Nf6 {[%clk 0:00:28]} 65. Kc4 {[%clk 0:00:04]}  Ne4 {[%clk 0:00:29]} 66. Nf1 {[%clk 0:00:02]}  h1=Q {[%clk 0:00:29]} 67. Ne3 {[%clk 0:00:03]}  Qc1+ {[%clk 0:00:29]} 68. Kd4 {[%clk 0:00:03]}  Qd2+ {[%clk 0:00:29]} 69. Ke5 {[%clk 0:00:04]}  Qxe3 {[%clk 0:00:29]} 70. f5 {[%clk 0:00:05]}  Nf6# {[%clk 0:00:29]} 0-1


[Site "https://www.chess.com"]

[Event "Titled Tuesday Blitz September 27 Early 2022"]
[White "Quispe Santacruz, Javier"]
[Black "Pinero Rodriguez, Carlos Jose"]
[WhiteFideId "3800920"]
[BlackFideId "3901726"]
[WhiteElo "1930"]
[BlackElo "2053"]
[Result "0-1"]
[Round "03"]
[TimeControl "180+1"]
[Date "2022.09.27"]
[WhiteClock "0:01:59"]
[BlackClock "0:02:47"]

1. e4 {[%clk 0:03:00]}  c5 {[%clk 0:02:59]} 2. Nf3 {[%clk 0:02:56]}  e6 {[%clk 0:03:00]} 3. d4 {[%clk 0:02:53]}  cxd4 {[%clk 0:03:01]} 4. Nxd4 {[%clk 0:02:53]}  a6 {[%clk 0:03:02]} 5. c4 {[%clk 0:02:53]}  Qc7 {[%clk 0:03:02]} 6. Nc3 {[%clk 0:02:50]}  Nf6 {[%clk 0:03:03]} 7. f3 {[%clk 0:02:47]}  b6 {[%clk 0:03:03]} 8. Be3 {[%clk 0:02:46]}  h5 {[%clk 0:03:03]} 9. Rc1 {[%clk 0:02:45]}  Bb7 {[%clk 0:03:02]} 10. b3 {[%clk 0:02:44]}  Bd6 {[%clk 0:03:03]} 11. Qd2 {[%clk 0:02:42]}  Bxh2 {[%clk 0:03:03]} 12. Be2 {[%clk 0:02:26]}  Bg3+ {[%clk 0:03:02]} 13. Bf2 {[%clk 0:02:25]}  h4 {[%clk 0:02:57]} 14. Qg5 {[%clk 0:02:17]}  Nh5 {[%clk 0:02:49]} 15. Bd1 {[%clk 0:01:59]}  Bf4 {[%clk 0:02:47]} 0-1


[Site "https://www.chess.com"]

[Event "Titled Tuesday Blitz September 27 Early 2022"]
[White "Raja Rithvik R"]
[Black "Sprenar, Petr"]
[WhiteFideId "35007394"]
[BlackFideId "397164"]
[WhiteElo "2255"]
[BlackElo "2153"]
[Result "1-0"]
[Round "03"]
[TimeControl "180+1"]
[Date "2022.09.27"]
[WhiteClock "0:00:24"]
[BlackClock "0:00:06"]

1. Nf3 {[%clk 0:03:00]}  d5 {[%clk 0:03:00]} 2. g3 {[%clk 0:03:01]}  e6 {[%clk 0:03:00]} 3. Bg2 {[%clk 0:03:02]}  Nf6 {[%clk 0:03:00]} 4. O-O {[%clk 0:03:03]}  Be7 {[%clk 0:03:01]} 5. d3 {[%clk 0:03:04]}  O-O {[%clk 0:03:01]} 6. Nbd2 {[%clk 0:03:05]}  c5 {[%clk 0:03:00]} 7. e4 {[%clk 0:03:06]}  Nc6 {[%clk 0:03:01]} 8. Re1 {[%clk 0:03:06]}  b5 {[%clk 0:03:01]} 9. e5 {[%clk 0:03:06]}  Nd7 {[%clk 0:03:01]} 10. Nf1 {[%clk 0:03:07]}  Bb7 {[%clk 0:03:01]} 11. h4 {[%clk 0:03:07]}  Qb6 {[%clk 0:03:02]} 12. h5 {[%clk 0:03:05]}  h6 {[%clk 0:03:02]} 13. Bf4 {[%clk 0:03:02]}  Rfc8 {[%clk 0:03:02]} 14. Ne3 {[%clk 0:03:01]}  Qd8 {[%clk 0:02:55]} 15. Ng4 {[%clk 0:02:55]}  Bf8 {[%clk 0:02:54]} 16. c3 {[%clk 0:02:54]}  b4 {[%clk 0:02:51]} 17. c4 {[%clk 0:02:54]}  Nb6 {[%clk 0:02:49]} 18. b3 {[%clk 0:02:49]}  dxc4 {[%clk 0:02:43]} 19. dxc4 {[%clk 0:02:48]}  Qxd1 {[%clk 0:02:43]} 20. Raxd1 {[%clk 0:02:49]}  Rd8 {[%clk 0:02:43]} 21. Be3 {[%clk 0:02:40]}  Na5 {[%clk 0:02:24]} 22. Nd2 {[%clk 0:02:38]}  Bxg2 {[%clk 0:02:24]} 23. Kxg2 {[%clk 0:02:39]}  Nb7 {[%clk 0:02:22]} 24. Ne4 {[%clk 0:02:37]}  a5 {[%clk 0:02:20]} 25. Rxd8 {[%clk 0:01:58]}  Rxd8 {[%clk 0:02:18]} 26. Re2 {[%clk 0:01:59]}  a4 {[%clk 0:02:11]} 27. Rd2 {[%clk 0:01:59]}  Ra8 {[%clk 0:01:43]} 28. Nd6 {[%clk 0:01:58]}  Bxd6 {[%clk 0:01:38]} 29. exd6 {[%clk 0:01:59]}  f6 {[%clk 0:01:20]} 30. f3 {[%clk 0:01:37]}  Kf7 {[%clk 0:00:55]} 31. Nf2 {[%clk 0:01:32]}  Ke8 {[%clk 0:00:55]} 32. Nd3 {[%clk 0:01:24]}  Rc8 {[%clk 0:00:44]} 33. Nxb4 {[%clk 0:01:18]}  axb3 {[%clk 0:00:31]} 34. axb3 {[%clk 0:01:19]}  cxb4 {[%clk 0:00:18]} 35. Bxb6 {[%clk 0:01:20]}  Kd7 {[%clk 0:00:18]} 36. Rd4 {[%clk 0:00:31]}  Rc6 {[%clk 0:00:14]} 37. Bc7 {[%clk 0:00:32]}  Nc5 {[%clk 0:00:14]} 38. Rg4 {[%clk 0:00:31]}  e5 {[%clk 0:00:06]} 39. Rxg7+ {[%clk 0:00:29]}  Ke6 {[%clk 0:00:06]} 40. Re7+ {[%clk 0:00:24]} 1-0


[Site "https://www.chess.com"]